Cogmind - Beta 13 @@@ ROGUE MODE // 2024.03.31 @ 18:18:41 Player: MasterLemons Result: Destroyed by S-10 Pest with Light Assault Rifle Performance ------------- Evolutions (0) 0 Regions Visited (2) 400 Robots Destroyed (29) 145 Value Destroyed (602) 602 Prototype IDs (3) 60 Alien Tech Used (0) 0 Bonus (-294) -294 TOTAL SCORE: 913 Bonus ------- High Alert Combat Kills 4 Friendly Fire -298 Cogmind --------- Core Integrity 0/250 Matter 132/300 Energy 125/125 System Corruption 1% Temperature Cool (0) Movement Walking (270) Ox2 Location -10/Mines Parts ------- > --- POWER (1) -------- Light Ion Engine > --- PROPULSION (2) --- VSS Leg > --- UTILITY (2) ------ Sensor Array Sensor Drone Bay (16/20) > --- WEAPON (2) ------- Shock Rifle Improved Grenade Launcher > --- INVENTORY (5) ---- Improved Heat Sink Visual Processing Unit Signal Interpreter Terrain Scanner ECM Suite Peak State ------------ > --- POWER ------------ Light Ion Engine > --- PROPULSION ------- Aluminum Leg VSS Leg > --- UTILITY ---------- Sensor Array Sensor Drone Bay > --- WEAPON ----------- Shock Rifle Improved Grenade Launcher > --- INVENTORY -------- Improved Heat Sink Visual Processing Unit Signal Interpreter ECM Suite [Rating: 20] Favorites ----------- Power Ion Engine Engine Ion Engine Propulsion Aluminum Leg Treads Light Treads Leg Aluminum Leg Utility Sensor Array Device Sensor Array Storage Huge Storage Unit Weapon Light Assault Rifle Energy Gun Shock Rifle Ballistic Gun Light Assault Rifle Launcher Grenade Launcher Build | -11 -10 -10 ------- Run | Yrd Mat Min Slots Evolved . | . . . Power . | . . . Propulsion . | . . . Utility . | . . . Weapon . | . . . Parts Attached 30 | 9 12 9 Power 3 | 1 . 2 Engine 3 | 1 . 2 Core . | . . . Reactor . | . . . Propulsion 9 | 4 3 2 Treads 2 | 2 . . Leg 7 | 2 3 2 Wheel . | . . . Hover . | . . . Flight . | . . . Utility 8 | 1 4 3 Device 5 | . 3 2 Storage 3 | 1 1 1 Processor . | . . . Hackware . | . . . Protection . | . . . Artifact . | . . . Weapon 10 | 3 5 2 Energy Gun 3 | 2 . 1 Energy Cannon . | . . . Ballistic Gun 3 | 1 2 . Ballistic Cannon . | . . . Launcher 4 | . 3 1 Special Weapon . | . . . Impact Weapon . | . . . Slashing Weapon . | . . . Piercing Weapon . | . . . Special Melee Weapon . | . . . Unidentified Prototypes 1 | . . 1 Parts Lost 5 | . 2 3 Power 1 | . . 1 Propulsion 1 | . . 1 Utility 1 | . 1 . Weapon 2 | . 1 1 Highest Loss Streak 2 | . 2 1 To Critical Strikes . | . . . Average Slot Usage (%) 95 | . 98 90 Engine 13 | . 14 12 Leg 26 | . 27 24 Device 17 | . 12 24 Storage 9 | . 14 2 Energy Gun 3 | . . 9 Ballistic Gun 10 | . 14 4 Launcher 12 | . 12 11 Naked Turns . | . . . Heaviest Build 90 | 14 90 90 Greatest Support 40 | 40 20 22 Greatest Overweight (x) 8 | . 4 8 Average Overweight (x) . | . 1 . Largest Inventory Capacity 25 | 8 25 25 Average Capacity 13 | 6 16 8 Most Carried 8 | 3 8 7 Average Carried 4 | . 5 4 Final Capacity 25 | 8 25 5 Final Carried 6 | 1 6 5 Class Distribution -------------------- 100% | Mutant Dominant Class ---------------- Mutant | -10/Materials Mutant | -10/Mines Resources | -11 -10 -10 ----------- Run | Yrd Mat Min Matter Collected 805 | 255 181 369 Remotely . | . . . Salvage Created 491 | . 335 156 Parts 34 | . 24 10 Haulers Intercepted . | . . . Recyclers Shooed 2 | . . 2 Parts Field Recycled . | . . . Retrieved Matter . | . . . Parts Self-Destructed . | . . . Prevented . | . . . Kills | -11 -10 -10 ------- Run | Yrd Mat Min Combat Hostiles Destroyed 23 | . 15 8 Guns 7 | . 3 4 AOE 16 | . 12 4 Classes Destroyed 7 | . 4 3 Worker 1 | . 1 . Tunneler 1 | . . 1 Recycler 1 | . . 1 Drone 1 | . . 1 Watcher 3 | . 3 . Swarmer 12 | . 5 7 Grunt 11 | . 10 1 Best Kill Streak 4 | . 4 4 Combat Bots Only 3 | . 3 3 Max Kills in Single Turn 2 | . 2 2 Gunslinging . | . . . Exploded 2 | . 2 1 Melee . | . . . Uniques/NPCs Destroyed . | . . . Combat | -11 -10 -10 -------- Run | Yrd Mat Min Hostile Shots Fired 124 | . 63 61 Missed 35 | . 15 20 Damage Taken 1048 | . 574 474 Core 251 | . 145 106 Absorbed by Shields . | . . . Regen/Repaired (Parts) 75 | . 75 . Core Remaining (%) 100 | 100 . . Volleys Fired 82 | . 49 33 Largest 2 | . 2 2 Hottest 86 | . 50 86 Shots Fired 117 | . 72 45 Gun 83 | . 49 34 Cannon . | . . . Launcher 34 | . 23 11 Special . | . . . Kinetic 73 | . 49 24 Thermal . | . . . Explosive 34 | . 23 11 Electromagnetic 10 | . . 10 Robot Hit Streak 6 | . 4 6 Robot Miss Streak 4 | . 4 2 Penetration Max . | . . . Secondary Targets . | . . . Shots Hit Robots 48 | . 26 22 Core Hits 47 | . 27 20 Critical Kills . | . . . Critical Parts Destroyed 1 | . 1 . Critical Strikes 1 | . 1 . Destroy 1 | . 1 . Melee Attacks . | . . . Impact . | . . . Slashing . | . . . Piercing . | . . . Sneak Attacks . | . . . Combat Hostiles . | . . . Follow-up Attacks . | . . . Damage Inflicted 2359 | . 1336 1023 Guns 473 | . 303 170 Cannons . | . . . Explosions 1880 | . 1033 847 Melee . | . . . Ramming 6 | . . 6 Kinetic 418 | . 303 115 Thermal . | . . . Explosive 1880 | . 1033 847 Electromagnetic 55 | . . 55 Impact . | . . . Slashing . | . . . Piercing . | . . . Highest Corruption 1 | . 1 1 Average Corruption 1 | . 1 1 Corruption Purged . | . . . Corruption Blocked . | . . . Effects 11 | . 4 7 Message Errors 5 | . 2 3 Matter Fused 1 | . . 1 Energy Discharges 2 | . 1 1 Data Loss (major) 1 | . 1 . Misfires 1 | . . 1 Alerts 1 | . . 1 Overload Shots . | . . . Overflow Damage 141 | . 44 97 Projectiles . | . . . Explosions 141 | . 44 97 Melee . | . . . Knockbacks . | . . . Impact . | . . . Kinetic . | . . . Secondary . | . . . Self-Inflicted Damage 181 | . 109 72 Shots 8 | . 5 3 Rammed . | . . . Targets Rammed 3 | . 1 2 Kicked 3 | . 1 2 Crushed . | . . . Highest Temperature 208 | . 38 208 Average Temperature 65 | . 15 91 Received Heat Transfer 303 | . 153 150 Siege Activations . | . . . Robots Corrupted . | . . . Combat Hostiles . | . . . Parts Fried . | . . . Impact Corruptions . | . . . Robots Melted . | . . . Combat Hostiles . | . . . Parts Melted . | . . . Heat Transferred . | . . . Parts Sabotaged . | . . . Parts Stolen . | . . . Parts Stripped . | . . . Power Chain Reactions . | . . . Alert | -11 -10 -10 ------- Run | Yrd Mat Min Peak Influence 448 | . 448 155 Initial 43 | . . 43 Average 167 | . 231 62 Maximum Alert Level 2 | . 2 . Low Security (%) 62 | 100 40 100 Level 1 34 | . 55 . Level 2 2 | . 4 . Level 3 . | . . . Level 4 . | . . . Level 5 . | . . . High Security . | . . . Max Security . | . . . Squads Dispatched 6 | . 5 1 Investigation 6 | . 5 1 Extermination . | . . . Reinforcement . | . . . Assault . | . . . Garrison . | . . . Intercept . | . . . Searches Triggered . | . . . Construction Impeded . | . . . Haulers Reinforced . | . . . Active Scanning Responses . | . . . Cargo Convoy Interrupts . | . . . Stealth | -11 -10 -10 --------- Run | Yrd Mat Min Distress Signals 1 | . . 1 Communications Jammed . | . . . Distress Signals . | . . . Times Spotted 37 | . 24 13 Peak Tracking Total 4 | . 4 3 Tactical Retreats 5 | . 4 1 Traps | -11 -10 -10 ------- Run | Yrd Mat Min Traps Triggered 3 | . 3 . Indirectly . | . . . Trap Hack Attempts . | . . . Triggered . | . . . Disarmed . | . . . Reprogrammed . | . . . Reused . | . . . Traps Extracted . | . . . Installed . | . . . Triggered . | . . . Machines | -11 -10 -10 ---------- Run | Yrd Mat Min Machines Disabled 2 | . 1 1 Max in Single Turn 1 | . 1 1 Machines Repaired . | . . . Machines Dismantled . | . . . Machines Sabotaged . | . . . Overloaded Fab Kills . | . . . Hacking | -11 -10 -10 --------- Run | Yrd Mat Min Machines Accessed 13 | . 11 2 Terminals 8 | . 8 . Fabricators . | . . . Repair Stations 1 | . 1 . Recycling Units 2 | . 2 . Scanalyzers . | . . . Garrison Access . | . . . Total Hacks 39 | . 37 2 Successful 23 | . 21 2 Failed 16 | . 16 . Catastrophic 1 | . 1 . Database Lockouts . | . . . Manual . | . . . Terminals 29 | . 29 . Fabricators . | . . . Repair Stations 2 | . 2 . Recycling Units 6 | . 6 . Scanalyzers . | . . . Garrison Access . | . . . Terminal Hacks 18 | . 16 2 Record 11 | . 11 . Robot Analysis 1 | . 1 . Prototype ID Bank 1 | . 1 . Open Door 2 | . . 2 Locate Traps 1 | . 1 . Security Status 1 | . 1 . Zone Layout 1 | . 1 . Fabricator Hacks . | . . . Repair Station Hacks 2 | . 2 . Scan Component 1 | . 1 . Repair 1 | . 1 . Recycling Unit Hacks 3 | . 3 . Report Inventory 1 | . 1 . Retrieve Matter 1 | . 1 . Retrieve Components 1 | . 1 . Scanalyzer . | . . . Garrison Access Hacks . | . . . Unauthorized Hacks . | . . . Terminals . | . . . Fabricators . | . . . Repair Stations . | . . . Recycling Units . | . . . Scanalyzers . | . . . Garrison Access . | . . . Data Cores Recovered . | . . . Used . | . . . Hacking Detections 8 | . 8 . Full Trace Events 4 | . 4 . Feedback Events 1 | . 1 . Corruption 1 | . 1 . Feedback Blocked . | . . . Robot Schematics Acquired . | . . . Robots Built . | . . . Authchips . | . . . Time . | . . . Total Robot Build Rating . | . . . Part Schematics Acquired . | . . . Parts Built . | . . . Authchips . | . . . Time . | . . . Total Part Build Rating . | . . . Parts Repaired 1 | . 1 . Time 26 | . 26 . Parts Recycled . | . . . Recycled Matter . | . . . Retrieved Matter 25 | . 25 . Retrieved Components 7 | . 7 . Parts Scanalyzed . | . . . Part Schematics Acquired . | . . . Parts Damaged . | . . . Bothacking | -11 -10 -10 ------------ Run | Yrd Mat Min Used RIF Installer . | . . . Robots Hacked . | . . . Non-combat . | . . . Combat . | . . . Robot Hacks Applied . | . . . Relay Couplers Released . | . . . Fabnet Peak Effective % . | . . . Robots Rewired . | . . . Allies Hacked . | . . . Hacks Repelled . | . . . Allies | -11 -10 -10 -------- Run | Yrd Mat Min Total Allies . | . . . Largest Group . | . . . Highest-Rated Group . | . . . Highest-Rated Ally . | . . . Total Orders . | . . . Ally Attacks . | . . . Total Damage . | . . . Kills . | . . . Allies Corrupted . | . . . Allies Melted . | . . . Intel | -11 -10 -10 ------- Run | Yrd Mat Min Robot Analysis Total 1 | . 1 . Derelict Logs Recovered 1 | . . 1 Drone Launches 20 | . . 20 Drone Recoveries 16 | . . 16 Exploration | -11 -10 -10 ------------- Run | Yrd Mat Min Turns Passed 2602 | 79 1635 888 Spaces Moved 1255 | 43 712 500 Core 4 | 4 . . Treads 25 | 25 . . Legs 1226 | 14 712 500 Wheels . | . . . Hover . | . . . Flight . | . . . Fastest Speed 50 | 50 120 105 Average Speed 180 | 136 204 150 Slowest Speed 680 | 160 400 680 Overloaded Moves . | . . . Propulsion Burnouts . | . . . Robots Hopped . | . . . Cave-ins Triggered . | . . . Exploration Rate (%) 61 | 5 98 80 Regions Visited 2 Branch Regions 1 Pre-discovered Areas 1 | . . 1 Known Exits Taken . | . . . Unknown Exits Taken 2 | 1 1 . Scrap Searched 2 | . . 2 Spaces Dug . | . . . Terrain Destroyed 220 | . 134 86 Melee . | . . . Projectile . | . . . AOE 220 | . 134 86 Terrain Rammed . | . . . Walls Destroyed . | . . . Machines Disabled . | . . . Actions | -11 -10 -10 --------- Run | Yrd Mat Min Total 1491 | 62 825 604 Wait 58 | . 26 32 Move 1253 | 42 711 500 Hop . | . . . Pick Up 42 | 9 19 14 Fast Attach 1 | . . 1 Attach 20 | 6 7 7 Detach . | . . . Swap 9 | 3 5 1 Drop 23 | 2 7 14 Fire 82 | . 49 33 Melee . | . . . Ram . | . . . Kick 3 | . 1 2 Crush . | . . . Escape Stasis . | . . . Rewire . | . . . Trap . | . . . Miscellaneous . | . . . Route ------- -11/Scrapyard -10/Materials (discovered 5 exits: *Mat x3 / *Min x2) -10/Mines (discovered 2 exits: *Mat / [*Exi]) History --------- Turn | Location | Event 4 | -11/Scrapyard | Discovered new exit (range 15) 80 | -11/Scrapyard | Entered Materials 309 | -10/Materials | Build established: Mutant 313 | -10/Materials | Discovered new exit (range 6) 345 | -10/Materials | Discovered new exit (range 12) 579 | -10/Materials | Discovered new exit (range 8) 621 | -10/Materials | Repaired Aluminum Leg 737 | -10/Materials | Discovered new exit (range 7) 787 | -10/Materials | Core integrity fell below 50% 1063 | -10/Materials | Discovered new exit (range 14) 1715 | -10/Materials | Entered Mines 1814 | -10/Mines | Met a Derelict shopkeep closing up shop 1966 | -10/Mines | Learned location of Mines (-9) 2115 | -10/Mines | Deemed a non-threat by the Exiles lab entrance 2115 | -10/Mines | Discovered new exit (range 5) 2311 | -10/Mines | Found the Drone Emporium 2314 | -10/Mines | Found Prototype Device 2315 | -10/Mines | Identified Sensor Drone Bay 2461 | -10/Mines | Discovered new exit (range 13) 2464 | -10/Mines | Core integrity fell below 20% 2535 | -10/Mines | Lost 3 allies 2584 | -10/Mines | Identified exit to Materials 2603 | -10/Mines | Destroyed by S-10 Pest with Light Assault Rifle Last Messages --------------- Acquired 64 matter. The unstable cave ceiling collapses. K-01 Serf crushed by falling debris. K-01 Serf system corrupted by crushing effect. K-01 Serf destroyed. The unstable cave ceiling collapses. U-05 Engineer lays Concrete. The unstable cave ceiling collapses. Acquired 20 matter. Seismic Survey Station disabled. S-10 Pest destroyed. U-05 Engineer builds a Wall. Acquired 15 matter. Acquired 17 matter. Acquired 15 matter. The unstable cave ceiling collapses. EXIT=IDENTIFIED: MATERIALS Acquired 8 matter. FU%B%POA <41I10RM,Y 9P/TKUFNYN K-01 Serf collects debris. Map ----- +----------------------------------------------------+ | | | | | | | | | ????????????????????????????????????????? | | ????????????????????????????????????????? | | ####??###############???????????????????? | | #### ##??????????????????? | | ## #??????????????????? | | ### #??????????????????? | | #?## ## #??????????????????? | | #??###### ##??????????????????? | | ##????????##???????????????????? | | ##??????????????????????????????? | | ####????????????????????????????? | | # # ###??????????????????????????? | | ## # #??????????????????????????? | | # # ## ####???????????????????????? | | ## ## #???????????????????????? | | # #??###??????????????????? | | ### # # #### ###????????????????? | | # # ### #????????????????? | | ### # # ##????????????????? | | ??## ## ####?????????????? | | ???##### # t k ### #?????????? | | ?????### ## [ n ##@ #?????????? | | ???????## !## < = " #### #####?????????? | | ????????#! [ = """#??# #?????????????? | | ?#??????#####= #??#s#?????????????? | | ????????????# #?? ?????????????? | | ????????????##########?? ss????????????? | | ???????????????????????? ?????????????? | | ?#############??????????"" ?????????????? | | ## # !!#??????????"" ?????????????? | | #??????????"" ?????????????? | | ####= #??????????"" ????????????? | | #####??# #???????????? ????????????? | | ##??????# #?????????#??T#????????????? | | #??#????# #????????????#?????????????? | | #???????# #??????????????????????????? | | #???????# #??????????????????????????? | | ##?????## #??????#???????????????????? | | #????## #??????????????????????????? | | ##### #??????????????????????????? | | #??????????????????????????? | | # ##?????????#???????????????? | | # ### ##????????????????????????? | | ## ##?# ###?#????????????????????? | | ?#####??# ####???????????????????? | | ????????# ##??????????????????? | +----------------------------------------------------+ Best States ------------- Heat Dissipation 25 Energy Generation 10 Energy Capacity 250 Matter Stores 265 Matter Capacity 300 Sight Range 16 Robot Scan Range 14 Terrain Scan Range 14 Terrain Scan Density 10 Evasion (%) 55 Recoil Reduction 2 Item Schematics ----------------- None Robot Schematics ------------------ None Fabricated ------------ Nothing Alien Tech Used ----------------- None Achievements -------------- Librarian One Hack Too Far Oops Release The Drones! Remodeling Risk Taker Challenges ------------ None Game ------ Seed HugeAssaultRipper Manual? 0 Play Time 00:29:55 Cumulative 1.1 hours Start 2024.03.31 @ 17:46:00 End 2024.03.31 @ 18:18:41 Sessions 1 Manual Loads 0 Difficulty Rogue Special Mode None Game No. 4 Rogue 1 Adventurer 3 Explorer 0 Win Type - Total 0 Types 0/0/0/0/0/0/0/0/0 Lore% 1 Gallery% 3 Achievement% 5 Wizard Run 0 Options --------- Layout 1 ASCII 0 Keyboard 0 Movement Mouse Keybinds 0 Fullscreen 1 Font 32/SmallcapsGlow Map View 77x35 Zoom Use 0% Tactical HUD 0 Map Filters NONE Filters NONE Steam 1 RUN: 8d20221e-62d5-4fc7-bab5-80178767edba